bitfinex/quotes_SOLUSD_20250626
["timestamp","ask_amount","ask_price","bid_price","bid_amount"]
[1750958728158,6.80751257,141.99,141.98,0.02]
[1750958728852,7.04128762,142.02,141.98,0.02]
[1750958729059,6.80751257,141.99,141.98,0.02]
[1750958731366,6.80751257,142.0,141.98,0.02]
[1750958731542,5.22886109,142.05,141.99,18.64964886]
[1750958731745,12.07637366,142.06,142.02,6.80751257]
[1750958731953,12.07637366,142.06,142.01,114.85716143]
[1750958731954,6.80751257,142.05,142.01,114.85716143]
[1750958732142,6.80751257,142.04,142.01,89.4]
[1750958734246,7.07932979,142.06,142.01,89.4]
[1750958734247,6.80751257,142.05,142.01,89.4]
[1750958735371,6.80751257,142.04,142.01,89.4]
[1750958736656,0.04,142.06,142.01,89.4]
[1750958736974,6.84751257,142.06,142.02,18.64964886]
[1750958737139,6.80751257,142.05,142.02,108.04964886]
[1750958737552,6.80751257,142.04,142.02,108.04964886]
[1750958739455,6.80751257,142.05,142.02,108.04964886]
[1750958740642,0.04,142.06,142.04,18.64964886]
[1750958742973,6.80751257,142.05,142.02,89.4]
[1750958743158,6.80751257,142.04,142.02,89.4]
[1750958743353,0.04,142.06,142.02,89.4]
[1750958743671,6.80751257,142.05,142.02,89.4]
[1750958744658,6.80751257,142.04,142.02,89.4]
[1750958745968,6.80751257,142.03,142.0,89.4]
[1750958746157,6.80751257,142.04,142.0,96.20751257]
[1750958746676,6.80751257,142.04,142.01,18.64964886]
[1750958748357,6.80751257,142.03,142.01,18.64964886]
[1750958748558,6.80751257,142.03,142.01,108.04964886]
[1750958753976,6.80751257,142.02,142.01,89.4]
[1750958754180,6.80751257,142.02,141.99,49.39614886]
[1750958754181,5.22886109,142.04,141.99,109.67614886]
[1750958754372,6.80751257,142.02,141.99,109.67614886]
[1750958758985,5.22738129,142.04,142.02,18.64964886]
[1750958759282,5.26738129,142.06,142.03,18.64964886]
[1750958759490,0.04,142.06,142.03,18.64964886]
[1750958760479,0.04,142.06,142.05,25.45716143]
[1750958760686,0.04,142.06,142.05,27.7451389]
[1750958762988,0.04,142.06,142.05,20.93762633]
[1750958763192,0.04,142.06,142.05,27.7451389]
[1750958763996,0.04,142.06,142.05,124.32707519]
[1750958764176,0.04,142.07,142.06,108.15181043]
[1750958764376,0.04,142.07,142.06,144.059323]
[1750958765173,0.04,142.07,142.06,176.95994614]
[1750958765981,0.04,142.07,142.06,324.15994614]
[1750958766377,0.04,142.07,142.06,305.36813571]
[1750958766773,0.04,142.07,142.06,312.40741488]
[1750958768375,0.04,142.07,142.06,331.19922531]
[1750958770182,0.04,142.09,142.08,108.07181043]
[1750958770490,0.04,142.09,142.08,144.66315182]
[1750958770676,0.04,142.09,142.08,143.959323]
[1750958771396,6.84751257,142.09,142.07,18.64964886]
[1750958771595,0.04,142.09,142.07,18.64964886]
[1750958774096,0.04,142.09,142.08,0.70382882]
[1750958774280,0.04,142.09,142.08,36.57134139]
[1750958776184,0.04,142.09,142.08,125.85134139]
[1750958776588,0.04,142.09,142.08,144.50099025]
[1750958776885,0.04,142.09,142.08,143.79716143]
[1750958781182,0.04,142.09,142.08,136.98964886]
[1750958781705,0.04,142.09,142.08,137.69347768]
[1750958783082,6.84751257,142.09,142.08,89.28]
[1750958783703,6.84751257,142.09,142.03,6.38]
[1750958783905,6.80751257,142.06,142.04,18.64964886]
[1750958784604,0.04,142.09,142.04,18.64964886]
[1750958784812,6.80751257,142.08,142.06,18.64964886]
[1750958785904,0.04,142.09,142.06,18.64964886]
[1750958786107,6.80751257,142.08,142.06,18.64964886]
[1750958786911,6.80751257,142.08,142.04,96.20751257]
[1750958786912,6.80751257,142.07,142.04,89.4]
[1750958787094,6.80751257,142.06,142.04,89.4]
[1750958787294,6.80751257,142.06,142.04,18.64964886]
[1750958789722,6.80751257,142.07,142.04,18.64964886]
[1750958790599,6.80751257,142.06,142.04,18.64964886]
[1750958790790,6.80751257,142.06,142.03,95.78]
[1750958790993,6.80751257,142.06,142.03,6.38]
[1750958795127,6.80751257,142.07,142.03,6.38]
[1750958795310,6.80751257,142.06,142.03,6.38]
[1750958796898,6.80751257,142.06,142.03,95.78]
[1750958798502,6.80751257,142.05,142.03,95.78]
[1750958799921,6.80751257,142.04,142.03,95.78]
[1750958800117,6.80751257,142.04,142.0,89.4]
[1750958800308,6.80751257,142.01,142.0,89.4]
[1750958800517,6.80751257,142.01,141.98,114.42964886]
[1750958800818,6.80751257,142.04,142.0,6.80751257]
[1750958801023,6.80751257,142.04,142.01,18.64964886]
[1750958804214,6.80751257,142.05,142.01,18.64964886]
[1750958804414,6.80751257,142.04,142.01,18.64964886]
[1750958805724,6.80751257,142.04,142.01,108.04964886]
[1750958808337,6.80751257,142.03,142.01,89.4]
[1750958809958,6.80751257,142.04,142.01,89.4]
[1750958812527,6.80751257,142.05,142.01,89.4]
[1750958813239,6.80751257,142.04,142.01,89.4]
[1750958814436,6.80751257,142.05,142.01,89.4]
[1750958814947,6.80751257,142.05,142.01,118.44]
[1750958819462,12.95783392,142.09,142.02,18.64964886]
[1750958819640,6.80751257,142.05,142.02,108.04964886]
[1750958820350,6.80751257,142.06,142.02,108.04964886]
[1750958820553,0.04,142.09,142.03,35.84751257]
[1750958820859,0.04,142.09,142.08,6.80751257]
[1750958821157,0.04,142.09,142.08,96.20751257]
[1750958821344,0.04,142.09,142.08,26.16099025]
[1750958821542,0.04,142.09,142.08,40.14895267]
[1750958821741,0.04,142.09,142.08,41.67165267]
[1750958822248,0.04,142.09,142.08,27.82585182]
[1750958826561,0.04,142.09,142.08,137.58037581]
[1750958826855,0.04,142.1,142.09,19.07613357]
[1750958827046,0.04,142.1,142.09,54.90364614]
[1750958827356,0.04,142.1,142.09,61.94143908]
[1750958827555,0.04,142.12,142.09,61.94143908]
[1750958827556,0.04,142.12,142.11,44.64964886]
[1750958827751,0.04,142.12,142.11,87.94732638]
[1750958832680,0.04,142.12,142.11,45.49549067]
[1750958832886,0.04,142.12,142.11,61.50084167]
[1750958833049,0.04,142.12,142.11,60.79716143]
[1750958833371,0.04,142.12,142.11,150.19716143]
[1750958836581,0.04,142.12,142.11,143.38964886]
[1750958842464,6.84751257,142.12,142.11,89.4]
[1750958844993,0.04,142.12,142.11,108.04964886]
[1750958849463,0.04,142.12,142.11,115.56084167]
[1750958849666,0.04,142.12,142.11,115.70300324]
[1750958851773,0.04,142.14,142.13,107.96964886]
[1750958851967,0.04,142.14,142.13,144.48074265]
[1750958852172,0.04,142.14,142.13,143.77716143]
[1750958854196,0.04,142.14,142.13,144.20364614]
[1750958855967,0.04,142.14,142.13,291.40364614]
[1750958857271,0.04,142.14,142.13,284.59613357]
[1750958857470,0.04,142.14,142.13,291.40364614]
[1750958861178,0.04,142.14,142.13,284.14964886]
[1750958861374,0.04,142.14,142.13,291.099323]
[1750958862077,0.04,142.14,142.13,143.899323]
[1750958862678,0.04,142.14,142.13,136.94964886]
[1750958863786,0.04,142.14,142.13,137.65323008]
[1750958864778,0.04,142.14,142.13,144.60290422]
[1750958865000,0.04,142.14,142.13,143.899323]
[1750958866500,0.04,142.14,142.13,137.09181043]
[1750958866706,0.04,142.14,142.13,137.65323008]
[1750958866873,6.84751257,142.14,142.13,89.32]
[1750958867572,0.04,142.14,142.13,136.94964886]
[1750958867784,0.04,142.14,142.13,143.75716143]
[1750958868595,0.04,142.14,142.13,136.94964886]
[1750958868894,0.04,142.14,142.13,144.46074265]
[1750958869199,0.04,142.14,142.13,143.75716143]
[1750958880502,0.04,142.14,142.13,143.899323]
[1750958885215,0.04,142.15,142.14,108.07181043]
[1750958885518,0.04,142.15,142.14,291.74285472]
[1750958885694,0.04,142.15,142.14,291.039323]
[1750958890599,0.04,142.17,142.16,18.64964886]
[1750958890823,0.04,142.17,142.16,55.12059418]
[1750958894342,0.04,142.17,142.16,55.26275575]
[1750958894512,0.04,142.17,142.16,291.70275575]
[1750958894836,0.04,142.17,142.16,290.999323]
[1750958895734,0.04,142.18,142.17,108.27613357]
[1750958895927,0.04,142.18,142.17,262.98702941]
[1750958896128,0.04,142.18,142.17,262.28364614]
[1750958896740,0.04,142.18,142.17,261.85716143]
[1750958897112,0.04,142.18,142.17,290.79716143]
[1750958897519,0.04,142.18,142.17,283.98964886]
[1750958898052,0.04,142.18,142.17,290.79716143]
[1750958898205,0.04,142.18,142.17,283.98964886]
[1750958898407,6.84751257,142.18,142.17,136.78964886]
[1750958899717,0.04,142.18,142.17,136.78964886]
[1750958905215,0.04,142.18,142.17,143.59716143]
[1750958906845,0.04,142.19,142.18,107.95181043]
[1750958907146,0.04,142.19,142.18,144.4026568]
[1750958907345,0.04,142.19,142.18,143.699323]
[1750958907642,0.04,142.19,142.18,143.98364614]
[1750958908237,0.04,142.22,142.21,44.64964886]
[1750958908555,0.04,142.22,142.21,235.02683156]
[1750958908710,0.04,142.22,142.21,241.35550043]
[1750958909249,0.04,142.22,142.21,246.97356726]
[1750958909428,0.04,142.22,142.21,241.35550043]
[1750958910939,0.04,142.22,142.21,234.54798786]
[1750958911150,0.04,142.22,142.21,241.35550043]
[1750958912033,0.04,142.22,142.21,241.07117729]
[1750958912362,0.04,142.22,142.21,183.03117729]
[1750958914858,0.04,142.22,142.21,143.02964886]
[1750958915036,0.04,142.22,142.21,114.10964886]
[1750958915243,0.04,142.22,142.21,149.83716143]
[1750958915649,0.04,142.22,142.21,143.02964886]
[1750958918539,0.04,142.22,142.21,149.83716143]
[1750958921059,0.04,142.22,142.21,143.02964886]
[1750958925270,0.04,142.22,142.21,149.83716143]
[1750958927946,0.04,142.22,142.21,149.979323]
[1750958931575,0.04,142.22,142.21,149.959323]
[1750958932286,0.04,142.22,142.21,149.81716143]
[1750958932574,0.04,142.22,142.21,143.00964886]
[1750958935409,0.04,142.22,142.21,149.81716143]
[1750958937673,0.04,142.22,142.21,143.00964886]
[1750958938604,0.04,142.22,142.21,114.10964886]
[1750958938775,0.04,142.22,142.21,143.00964886]
[1750958940176,0.04,142.22,142.21,114.10964886]
[1750958940474,0.04,142.22,142.21,143.00964886]
[1750958942390,0.04,142.22,142.21,35.2]
[1750958943205,0.04,142.22,142.21,60.65716143]
[1750958946002,0.04,142.22,142.21,150.05716143]
[1750958951106,0.04,142.22,142.21,143.24964886]
[1750958956016,0.04,142.22,142.21,114.34964886]
[1750958956318,12.07344632,142.22,142.21,35.18]
[1750958956519,12.07344632,142.22,142.21,6.3]
[1750958959132,12.07344632,142.22,142.19,89.4]
[1750958959312,6.80751257,142.2,142.19,89.4]
[1750958959493,12.03344632,142.2,142.19,89.4]
[1750958960422,5.22593375,142.2,142.19,108.04964886]
[1750958960632,5.22593375,142.2,142.19,136.92964886]
[1750958960921,5.22593375,142.21,142.19,136.92964886]
[1750958961098,5.22593375,142.2,142.19,136.92964886]
[1750958961300,12.03344632,142.21,142.19,136.92964886]
[1750958961510,12.03087029,142.21,142.19,136.92964886]
[1750958962524,12.03087029,142.21,142.19,47.52964886]
[1750958964531,5.22335772,142.21,142.2,25.45716143]
[1750958964735,0.04,142.22,142.2,25.45716143]
[1750958965026,0.04,142.22,142.21,47.52964886]
[1750958967836,0.04,142.22,142.21,54.33716143]
[1750958968013,0.04,142.22,142.21,47.52964886]
[1750958968429,0.04,142.22,142.21,136.92964886]
[1750958969011,0.04,142.22,142.21,143.73716143]
[1750958972529,0.04,142.22,142.21,136.92964886]
[1750958976439,6.84751257,142.22,142.2,47.50964886]
[1750958976644,6.80751257,142.21,142.19,124.52]
[1750958977145,6.80751257,142.21,142.19,95.66]
[1750958980949,0.04,142.22,142.19,95.66]
[1750958980950,12.0319125,142.2,142.19,95.66]
[1750958981120,6.80751257,142.2,142.19,6.26]
[1750958981318,12.0319125,142.2,142.19,6.26]
[1750958981518,6.80751257,142.2,142.19,6.26]
[1750958981732,12.0319125,142.2,142.19,6.26]
[1750958981940,6.80751257,142.2,142.19,6.26]
[1750958982145,12.0319125,142.2,142.19,6.26]
[1750958982321,6.80751257,142.2,142.19,6.26]
[1750958982524,12.0319125,142.2,142.19,6.26]
[1750958982821,6.80751257,142.2,142.19,6.26]
[1750958983030,12.0319125,142.2,142.19,6.26]
[1750958983229,6.80751257,142.2,142.17,18.64964886]
[1750958983545,6.80751257,142.18,142.17,18.64964886]
[1750958984361,6.80751257,142.19,142.17,18.64964886]
[1750958984528,5.22439993,142.21,142.18,18.64964886]
[1750958984726,12.0319125,142.21,142.18,18.64964886]
[1750958985461,6.80751257,142.2,142.18,18.64964886]
[1750958987345,12.0319125,142.21,142.18,18.64964886]
[1750958987942,6.80751257,142.19,142.15,96.20751257]
[1750958988127,6.80751257,142.18,142.16,47.50964886]
[1750958989155,6.80751257,142.18,142.16,136.90964886]
[1750958989524,6.80751257,142.18,142.16,108.04964886]
[1750958989728,6.80751257,142.19,142.16,136.90964886]
[1750958991030,5.22439993,142.21,142.17,28.86]
[1750958991230,12.0319125,142.21,142.18,18.64964886]
[1750958991435,6.80751257,142.2,142.18,18.64964886]
[1750958992156,12.0719125,142.22,142.18,18.64964886]
[1750958992351,0.04,142.22,142.18,18.64964886]
[1750958992521,6.80751257,142.21,142.18,18.64964886]
[1750958993753,5.26439993,142.22,142.2,18.64964886]
[1750958994049,0.04,142.22,142.2,108.04964886]
[1750958995229,0.04,142.22,142.2,114.85716143]
[1750958995637,5.26439993,142.22,142.2,108.04964886]
[1750958995927,0.04,142.22,142.2,108.04964886]
[1750958996127,5.26439993,142.22,142.2,108.04964886]
[1750958996328,0.04,142.22,142.2,108.04964886]
[1750958999239,6.84751257,142.22,142.2,89.4]
[1750958999542,12.0719125,142.22,142.2,89.4]
[1750958999754,6.80334063,142.22,142.2,89.4]
[1750958999943,12.02774056,142.22,142.2,89.4]
[1750959000129,6.80334063,142.22,142.2,89.4]
[1750959000324,5.22439993,142.22,142.21,18.64964886]
[1750959000524,5.22439993,142.23,142.21,18.64964886]
[1750959001332,5.26439993,142.24,142.21,47.50964886]
[1750959001531,12.0719125,142.24,142.21,47.50964886]
[1750959003555,6.80751257,142.22,142.2,89.4]
[1750959003732,6.80751257,142.21,142.2,89.4]
[1750959003937,6.80751257,142.21,142.19,47.48964886]
[1750959004130,6.80751257,142.21,142.19,18.64964886]
[1750959004660,5.22439993,142.23,142.19,18.64964886]
[1750959004842,6.80751257,142.22,142.19,18.64964886]
[1750959005455,12.0319125,142.22,142.19,47.48964886]
[1750959005755,6.80751257,142.22,142.19,47.48964886]
[1750959005948,12.0319125,142.22,142.19,47.48964886]
[1750959006148,6.80751257,142.22,142.19,47.48964886]
[1750959006349,12.0319125,142.22,142.19,47.48964886]
[1750959006552,6.80751257,142.22,142.19,47.48964886]
[1750959006857,12.0319125,142.22,142.19,47.48964886]
[1750959007042,6.80751257,142.22,142.19,47.48964886]
[1750959007240,12.0319125,142.22,142.19,47.48964886]
[1750959007442,6.80751257,142.22,142.19,47.48964886]
[1750959007640,12.0319125,142.22,142.19,47.48964886]
[1750959007862,6.80751257,142.22,142.19,47.48964886]
[1750959008159,12.0319125,142.22,142.19,47.48964886]
[1750959008357,6.80751257,142.22,142.19,47.48964886]
[1750959008654,12.0319125,142.22,142.19,18.64964886]
[1750959008841,6.80751257,142.22,142.19,47.48964886]
[1750959009850,6.80751257,142.22,142.19,136.88964886]
[1750959010283,12.0319125,142.22,142.19,136.88964886]
[1750959010452,6.80751257,142.22,142.19,136.88964886]
[1750959011272,6.80751257,142.22,142.19,143.69716143]
[1750959011273,5.22439993,142.22,142.19,143.69716143]
[1750959011577,12.0319125,142.23,142.19,143.69716143]
[1750959011750,5.22439993,142.22,142.19,143.69716143]
[1750959013576,12.0319125,142.22,142.19,108.04964886]
[1750959013775,6.80751257,142.21,142.19,108.04964886]
[1750959014169,12.0319125,142.21,142.19,108.04964886]
[1750959014493,6.80751257,142.22,142.19,108.04964886]
[1750959014660,5.22439993,142.21,142.19,108.04964886]
[1750959016070,6.80751257,142.2,142.19,89.4]
[1750959016373,12.0319125,142.2,142.19,89.4]
[1750959016577,6.80751257,142.2,142.18,6.24]
[1750959016886,12.0319125,142.2,142.18,6.24]
[1750959017182,6.80751257,142.2,142.18,6.24]
[1750959017486,12.0319125,142.2,142.18,6.24]
[1750959017669,6.80751257,142.2,142.18,6.24]
[1750959017865,12.0319125,142.21,142.18,6.24]
[1750959018064,5.22439993,142.2,142.19,18.64964886]
[1750959018277,5.22439993,142.22,142.19,25.45716143]
[1750959018586,5.22439993,142.21,142.2,47.48964886]
[1750959018766,5.22439993,142.22,142.2,47.48964886]
[1750959019080,5.22439993,142.22,142.21,18.64964886]
[1750959019288,5.22439993,142.23,142.21,18.64964886]
[1750959019491,5.22439993,142.22,142.21,18.64964886]
[1750959019781,5.22439993,142.23,142.21,18.64964886]
[1750959019974,6.80751257,142.22,142.19,18.64964886]
[1750959020160,6.80751257,142.21,142.19,18.64964886]
[1750959020482,12.0319125,142.21,142.19,18.64964886]
[1750959020670,6.80751257,142.21,142.19,18.64964886]
[1750959020866,6.80751257,142.2,142.18,95.64]
[1750959021076,6.80751257,142.2,142.18,124.48]
[1750959021280,12.0319125,142.2,142.18,95.64]
[1750959021482,6.80751257,142.2,142.18,95.64]
[1750959021860,12.0319125,142.2,142.18,95.64]
[1750959022061,6.80751257,142.2,142.18,95.64]
[1750959022257,5.22439993,142.21,142.19,54.29716143]
[1750959022469,5.22439993,142.23,142.19,54.29716143]
[1750959022794,6.84751257,142.24,142.19,54.29716143]
[1750959022962,5.241693,142.23,142.19,54.29716143]
[1750959023161,6.84751257,142.24,142.19,47.48964886]
[1750959023389,12.05043319,142.23,142.19,54.29716143]
[1750959023587,6.80751257,142.23,142.19,54.29716143]
[1750959023891,6.84751257,142.24,142.19,54.29716143]
[1750959024097,5.24166039,142.23,142.19,54.29716143]
[1750959024388,5.24074081,142.23,142.19,54.29716143]
[1750959024890,12.04825338,142.23,142.19,47.48964886]
[1750959025067,6.80751257,142.2,142.19,18.64964886]
[1750959025392,6.80751257,142.21,142.19,18.64964886]
[1750959025975,12.04757638,142.21,142.19,18.64964886]
[1750959026178,6.80751257,142.21,142.19,18.64964886]
[1750959026570,12.04757638,142.21,142.19,18.64964886]
[1750959026774,6.80751257,142.21,142.19,18.64964886]
[1750959027182,12.04757638,142.21,142.19,18.64964886]
[1750959027398,6.80751257,142.21,142.19,18.64964886]
[1750959027576,6.80751257,142.21,142.19,108.04964886]
[1750959027896,12.04757638,142.21,142.19,108.04964886]
[1750959028083,6.80751257,142.21,142.19,108.04964886]
[1750959028282,13.58965684,142.24,142.19,108.04964886]
[1750959028283,12.04757638,142.22,142.19,108.04964886]
[1750959028485,6.80751257,142.23,142.19,114.85716143]
[1750959028692,5.23956541,142.22,142.2,28.82]
[1750959029009,5.23956541,142.23,142.2,28.82]
[1750959029299,6.80751257,142.23,142.2,28.82]
[1750959030093,5.24156978,142.22,142.2,28.82]
[1750959032378,12.04908235,142.22,142.19,108.04964886]
[1750959032604,6.80751257,142.22,142.2,18.64964886]
[1750959032782,12.04908235,142.22,142.2,18.64964886]
[1750959032981,6.80751257,142.22,142.2,18.64964886]
[1750959033499,6.80751257,142.22,142.2,108.04964886]
[1750959033703,6.80751257,142.23,142.2,108.04964886]
[1750959033999,5.24076465,142.22,142.2,108.04964886]
[1750959034194,6.80751257,142.23,142.2,108.04964886]
[1750959034394,5.24090198,142.22,142.2,108.04964886]
[1750959034702,5.24090198,142.21,142.2,108.04964886]
[1750959034887,5.24090198,142.22,142.2,108.04964886]
[1750959035081,5.24090198,142.21,142.2,108.04964886]
[1750959035282,5.24090198,142.22,142.2,108.04964886]
[1750959035482,5.24090198,142.21,142.2,108.04964886]
[1750959035680,12.04841455,142.23,142.2,108.04964886]
[1750959035981,5.24090198,142.22,142.2,108.04964886]
[1750959036320,5.24090198,142.21,142.2,108.04964886]
[1750959036479,5.24090198,142.22,142.2,108.04964886]
[1750959036673,5.24090198,142.21,142.2,108.04964886]
[1750959036982,5.24090198,142.22,142.2,108.04964886]
[1750959037193,5.24090198,142.21,142.2,108.04964886]
[1750959037393,5.24090198,142.22,142.2,108.04964886]
[1750959037700,5.24090198,142.21,142.2,108.04964886]
[1750959038008,5.24090198,142.22,142.2,108.04964886]
[1750959038175,5.24090198,142.21,142.2,108.04964886]
[1750959038378,5.24090198,142.22,142.2,108.04964886]
[1750959038594,5.24090198,142.21,142.2,108.04964886]
[1750959038796,5.24090198,142.22,142.2,108.04964886]
[1750959039098,5.24090198,142.22,142.21,35.62751257]
[1750959039400,5.24054889,142.23,142.22,18.64964886]
[1750959039604,0.04,142.24,142.22,114.85716143]
[1750959039902,5.28112104,142.24,142.23,35.62751257]
[1750959040106,5.28112104,142.24,142.23,125.02751257]
[1750959040318,0.04,142.24,142.23,125.02751257]
[1750959043007,0.04,142.24,142.23,118.22]
[1750959045623,0.04,142.24,142.23,144.52240954]
[1750959045911,0.04,142.24,142.23,143.819323]
[1750959047000,0.04,142.24,142.23,143.67716143]
[1750959048310,0.04,142.24,142.23,136.86964886]
[1750959050613,0.04,142.24,142.23,136.84964886]
[1750959055220,0.04,142.24,142.23,108.04964886]
[1750959055420,6.84751257,142.24,142.23,108.04964886]
[1750959056211,0.04,142.24,142.23,108.04964886]
[1750959057216,0.04,142.24,142.23,114.85716143]
[1750959057516,0.04,142.24,142.23,108.04964886]
[1750959057715,6.84751257,142.24,142.23,108.04964886]
[1750959059007,0.04,142.24,142.23,108.04964886]
[1750959060424,0.04,142.24,142.23,114.999323]
[1750959060809,0.04,142.24,142.23,115.70240954]
[1750959071947,0.04,142.24,142.23,136.84964886]
[1750959073436,6.84751257,142.24,142.23,89.4]
[1750959073635,13.65502514,142.24,142.17,89.4]
[1750959073839,6.80751257,142.18,142.17,89.4]
[1750959074012,6.80751257,142.18,142.17,47.44964886]
[1750959074812,6.80751257,142.19,142.17,47.44964886]
[1750959075017,6.80751257,142.19,142.17,18.64964886]
[1750959075344,6.80751257,142.21,142.19,18.64964886]
[1750959075519,6.80751257,142.2,142.19,18.64964886]
[1750959075716,6.80751257,142.2,142.17,28.8]
[1750959075928,6.80751257,142.19,142.18,18.64964886]
[1750959078640,0.04,142.24,142.18,25.45716143]
[1750959078846,6.84751257,142.24,142.21,18.64964886]
[1750959079147,6.84751257,142.24,142.21,136.84964886]
[1750959081549,6.80751257,142.23,142.21,136.84964886]
[1750959082947,0.04,142.24,142.21,136.84964886]
[1750959083150,6.80751257,142.23,142.21,136.84964886]
[1750959084531,6.80751257,142.22,142.21,136.84964886]
[1750959085555,6.80751257,142.23,142.21,136.84964886]
[1750959086752,6.84751257,142.24,142.21,136.84964886]
[1750959087058,0.04,142.24,142.22,6.80751257]
[1750959087356,0.04,142.24,142.23,28.8]
[1750959087851,0.04,142.24,142.23,143.65716143]
[1750959092044,0.04,142.24,142.23,136.84964886]
[1750959092244,0.04,142.24,142.23,143.65716143]
[1750959093953,0.04,142.24,142.23,136.84964886]
[1750959097965,6.84751257,142.24,142.23,89.4]
[1750959098451,0.04,142.24,142.23,89.4]
[1750959099963,6.84751257,142.24,142.23,89.4]
[1750959101867,6.84751257,142.24,142.22,6.2]
[1750959101868,6.84751257,142.24,142.22,95.6]
[1750959102041,6.80751257,142.23,142.22,95.6]
[1750959102237,6.80751257,142.23,142.22,89.4]
[1750959103245,6.80751257,142.23,142.19,47.42964886]
[1750959103246,6.80751257,142.23,142.18,18.64964886]
[1750959103445,6.80751257,142.19,142.18,47.42964886]
[1750959103873,6.80751257,142.2,142.18,47.42964886]
[1750959104050,6.80751257,142.21,142.18,47.42964886]
[1750959104556,12.31155365,142.24,142.18,47.42964886]
[1750959104557,6.80751257,142.2,142.18,47.42964886]
[1750959105169,6.80751257,142.19,142.18,18.64964886]
[1750959105369,6.80751257,142.19,142.16,1.5665]
[1750959105370,6.80751257,142.19,142.16,0.02]
[1750959105579,6.80751257,142.17,142.16,0.02]
[1750959106147,13.8413453,142.17,142.16,0.02]
[1750959106350,20.64885787,142.17,142.16,0.02]
[1750959107072,20.64885787,142.17,142.14,0.02]
[1750959107274,6.80751257,142.15,142.14,0.02]
[1750959107654,13.84233494,142.15,142.14,0.02]
[1750959108157,7.03482237,142.15,142.14,0.02]
[1750959108363,13.84233494,142.15,142.14,0.02]
[1750959109070,8.1288,142.14,142.13,0.02]
[1750959109275,14.93631257,142.14,142.13,0.02]
[1750959109464,14.93631257,142.14,142.12,0.02]
[1750959109660,13.84332485,142.13,142.12,0.02]
[1750959110569,6.80751257,142.13,142.12,0.02]
[1750959111159,1.5433,142.14,142.12,0.02]
[1750959111372,6.80751257,142.13,142.12,0.02]
[1750959112976,6.80751257,142.13,142.1,0.02]
[1750959113166,6.80751257,142.11,142.1,0.02]
[1750959113769,13.84431504,142.11,142.1,0.02]
[1750959114479,6.80751257,142.11,142.1,0.02]
[1750959115179,10.32032421,142.11,142.1,0.02]
[1750959116060,6.80751257,142.11,142.1,0.02]
[1750959121462,13.84431504,142.11,142.1,0.02]
[1750959122275,6.80751257,142.11,142.1,0.02]
[1750959124875,13.84431504,142.11,142.1,0.02]
[1750959125392,13.98647661,142.11,142.1,0.02]
[1750959125589,15.50357661,142.11,142.1,0.02]
[1750959125779,15.36141504,142.11,142.1,0.02]
[1750959125979,6.80751257,142.11,142.1,0.02]
[1750959126913,6.80751257,142.13,142.1,0.02]
[1750959128994,6.80751257,142.12,142.1,0.02]
[1750959131177,6.80751257,142.11,142.1,0.02]
[1750959137093,6.80751257,142.11,142.1,89.42]
[1750959139297,13.84431504,142.11,142.1,89.42]
[1750959139506,6.80751257,142.11,142.1,89.42]
[1750959141811,13.84431504,142.11,142.1,89.42]
[1750959142191,6.80751257,142.11,142.1,89.42]
[1750959142913,6.80751257,142.11,142.1,0.02]
[1750959148299,13.84431504,142.11,142.1,0.02]
[1750959148499,6.80751257,142.11,142.1,0.02]
[1750959149011,6.80751257,142.12,142.1,0.02]
[1750959149217,6.80751257,142.11,142.1,0.02]
[1750959149994,5.22068345,142.15,142.1,108.06964886]
[1750959150317,12.02819602,142.14,142.1,108.06964886]
[1750959150494,6.80751257,142.12,142.1,89.42]
[1750959150906,6.80751257,142.11,142.1,89.42]
[1750959152300,12.02819602,142.11,142.1,89.42]
[1750959154725,19.06499849,142.11,142.1,0.02]
[1750959155220,12.02819602,142.11,142.1,0.02]
[1750959155619,12.06843323,142.11,142.1,0.02]
[1750959156421,19.1052357,142.11,142.1,0.02]
[1750959163709,19.24739727,142.11,142.1,0.02]
[1750959166312,78.83092841,142.11,142.06,0.02]
[1750959166510,6.80751257,142.07,142.06,0.02]
[1750959166816,12.06843323,142.07,142.06,0.02]